bitfinex/quotes_ETHUSD_20241217
["timestamp","ask_amount","ask_price","bid_price","bid_amount"]
[1734417402572,3.57539176,4002.8,4002.6,0.7495]
[1734417403576,1.2366,4002.8,4002.6,0.7495]
[1734417403934,1.2366,4002.6,4001.1,1.3143]
[1734417404134,1.2366,4001.9,4001.1,1.3143]
[1734417404333,1.2366,4001.9,4000.9,2.4415449]
[1734417404334,2.33879176,4001.6,4001.2,0.74976]
[1734417404640,2.33879176,4001.6,4001.3,0.74974]
[1734417405741,2.33879176,4001.6,4000.9,0.12707686]
[1734417406153,2.33879176,4001.6,4001.3,0.74973]
[1734417408912,2.33879176,4001.6,4001.4,0.74973]
[1734417409112,0.26963309,4001.5,4001.4,0.74973]
[1734417409312,2.33879176,4001.6,4001.4,0.74973]
[1734417409874,0.35753918,4001.8,4001.7,0.74968]
[1734417411046,2.33879176,4002.1,4002.0,0.74962]
[1734417412536,2.33879176,4002.5,4002.0,0.74962]
[1734417412744,2.33879176,4002.5,4002.4,0.74955]
[1734417413745,2.33879176,4002.5,4002.1,0.74959]
[1734417414053,0.36302918,4002.4,4001.8,0.74966]
[1734417414202,2.33879176,4001.9,4001.3,0.74975]
[1734417414399,2.33879176,4001.9,4001.7,0.74967]
[1734417414813,2.33879176,4001.9,4001.2,3.0]
[1734417415020,2.57267094,4001.9,4001.1,1.2554]
[1734417415422,2.57267094,4001.9,4001.1,4.2554]
[1734417415649,2.57267094,4001.9,4001.1,1.2554]
[1734417415822,2.57267094,4001.9,4001.6,0.74968]
[1734417416051,2.57267094,4001.9,4001.3,0.74975]
[1734417416210,2.33879176,4001.5,4001.3,0.74975]
[1734417419839,0.55,4001.7,4001.3,0.74974]
[1734417421038,2.33879176,4001.5,4001.0,0.74979]
[1734417422676,0.55,4001.4,4001.0,0.74979]
[1734417423376,0.55,4001.4,4000.7,0.74985]
[1734417423660,0.28887918,4001.3,4000.8,0.74984]
[1734417424172,0.6171,4001.0,4000.5,0.74989]
[1734417425296,0.55,4000.6,3999.6,0.9628]
[1734417425490,2.33879176,4000.2,3999.9,0.75001]
[1734417425837,2.33879176,4000.2,3999.3,1.71293]
[1734417425838,2.33879176,4000.2,4000.0,0.74998]
[1734417426081,3.50589176,4000.6,3999.4,0.1256888]
[1734417426387,0.35058918,4000.5,4000.2,0.74995]
[1734417426729,0.35058918,4000.5,4000.0,0.49999]
[1734417426933,0.35058918,4000.5,4000.1,0.49998]
[1734417428772,2.33879176,4000.2,3999.4,0.1256888]
[1734417428936,0.23387918,4000.1,3999.4,0.1256888]
[1734417429134,2.33879176,3999.8,3999.7,0.50003]
[1734417429550,0.55,3999.7,3998.9,0.50013]
[1734417429758,2.33879176,3999.0,3998.8,0.50014]
[1734417433976,2.33879176,3999.4,3999.3,0.50008]
[1734417434162,2.95589176,3999.8,3999.5,0.50005]
[1734417434370,0.29558918,3999.7,3999.5,0.50005]
[1734417434953,0.29558918,3999.7,3998.6,3.8878]
[1734417435168,2.33879176,3999.2,3998.6,0.8878]
[1734417435463,2.33879176,3999.2,3999.1,0.50011]
[1734417436267,2.33879176,3999.2,3998.3,0.12220576]
[1734417436268,2.33879176,3999.2,3998.6,3.0]
[1734417436450,0.6171,3999.1,3998.8,0.50014]
[1734417436650,0.6171,3999.1,3998.9,0.50013]
[1734417437785,0.55,3999.0,3998.1,0.9375]
[1734417438093,0.55,3999.0,3997.6,0.50029]
[1734417438094,2.33879176,3998.4,3997.6,0.50029]
[1734417438385,0.6171,3998.3,3997.6,0.50029]
[1734417438586,0.6171,3998.3,3997.2,0.9375]
[1734417438587,2.33879176,3998.0,3997.2,0.9375]
[1734417438747,4.05383058,3998.9,3998.2,0.50022]
[1734417438942,1.1671,3998.8,3997.6,0.9375]
[1734417439176,1.1671,3998.8,3998.6,0.50016]
[1734417439575,4.05383058,3999.6,3998.9,0.50013]
[1734417439576,0.6171,3999.1,3998.9,0.50013]
[1734417439743,0.55,3999.0,3998.9,0.50013]
[1734417441155,0.6171,3999.4,3999.2,0.50008]
[1734417441356,0.43494198,3999.5,3999.2,0.50008]
[1734417441554,0.6171,3999.8,3999.7,0.50003]
[1734417441925,2.58267726,4000.5,4000.4,0.49995]
[1734417443056,1.54999379,4000.5,4000.4,0.49995]
[1734417443867,0.55,4000.4,3999.2,0.9375]
[1734417444075,0.70499938,4000.4,4000.0,0.49999]
[1734417444390,0.70499938,4000.4,3999.2,0.9375]
[1734417444601,0.5262,4000.3,3999.3,0.50008]
[1734417444761,0.55,4000.2,3999.7,3.0]
[1734417445101,2.88879176,4000.2,3999.6,3.0]
[1734417445395,2.88879176,4000.2,3998.8,0.9375]
[1734417445396,0.55,4000.0,3999.7,0.50003]
[1734417445571,0.55,4000.0,3999.1,0.50011]
[1734417445755,0.55,4000.0,3999.8,0.50001]
[1734417445956,0.55,4000.2,4000.0,0.49998]
[1734417446183,0.5262,4000.3,4000.2,0.49997]
[1734417446384,1.0762,4000.3,4000.2,0.49997]
[1734417446683,2.33879176,4001.0,4000.2,0.49997]
[1734417446896,1.16546223,4000.9,4000.4,0.49993]
[1734417447104,1.16546223,4000.9,4000.1,3.49997]
[1734417447270,1.16546223,4000.9,4000.2,0.49996]
[1734417448117,0.55,4000.8,4000.2,0.49996]
[1734417448318,0.55,4000.8,3999.8,0.50002]
[1734417448503,3.42751121,4000.4,3999.5,0.50005]
[1734417448816,0.55,4000.2,3999.2,0.50008]
[1734417448974,0.55,4000.2,3999.3,0.50008]
[1734417449277,0.5262,4000.1,3999.2,0.50009]
[1734417449482,1.06300306,4000.0,3999.2,0.50009]
[1734417449721,1.06300306,4000.0,3999.3,0.50008]
[1734417450039,1.06300306,4000.0,3998.6,0.9375]
[1734417450040,5.11683364,4000.0,3998.6,0.9375]
[1734417450237,0.55,3999.8,3999.0,0.50011]
[1734417450376,0.5262,3999.5,3998.3,1.4377]
[1734417450579,0.55,3999.4,3998.3,1.4377]
[1734417450870,0.55,3999.4,3998.8,0.50014]
[1734417451111,0.55,3999.4,3998.3,0.9375]
[1734417451318,0.55,3999.4,3999.0,0.50012]
[1734417452005,0.55,3999.4,3999.1,0.5001]
[1734417452458,0.55,3999.4,3998.3,0.9375]
[1734417452729,0.55,3999.4,3999.2,0.50009]
[1734417453291,0.55,3999.7,3998.6,0.50016]
[1734417453491,0.55,3999.7,3999.4,0.50006]
[1734417453925,0.55,3999.7,3999.5,0.50005]
[1734417454237,0.56130362,3999.7,3999.5,0.50005]
[1734417454434,0.01130362,3999.7,3999.5,0.50005]
[1734417456635,0.01130362,3999.7,3999.1,0.9375]
[1734417456839,0.01130362,3999.7,3999.6,0.75007]
[1734417459170,0.01130362,3999.7,3999.3,0.75011]
[1734417459519,0.55,3999.5,3999.3,0.75011]
[1734417462317,0.5262,3999.6,3999.4,0.75009]
[1734417463570,0.5262,3999.6,3999.1,0.12187781]
[1734417463571,0.55,3999.5,3999.2,0.75014]
[1734417463793,0.55,3999.5,3999.1,0.12187781]
[1734417463951,0.55,3999.5,3999.0,0.75018]
[1734417464632,0.55,3999.5,3998.9,0.12290178]
[1734417464834,0.01130362,3999.7,3999.4,0.75011]
[1734417467239,0.01130362,3999.7,3998.9,0.12290178]
[1734417467435,0.01130362,3999.7,3999.5,1.00012]
[1734417469173,0.37962437,3999.7,3999.5,1.00012]
[1734417469741,0.85917675,3999.6,3999.5,1.00012]
[1734417471383,0.37962437,3999.7,3999.5,1.00012]
[1734417471561,0.85924599,3999.6,3999.5,1.00012]
[1734417471764,0.37962437,3999.7,3999.5,1.00012]
[1734417472049,0.24948538,3999.6,3999.5,1.00012]
[1734417472643,0.24948538,3999.6,3998.9,1.12315178]
[1734417472843,0.01130362,3999.7,3999.3,1.00017]
[1734417473079,0.01130362,3999.7,3998.9,0.12290178]
[1734417473241,0.01130362,3999.7,3999.5,1.00012]
[1734417476042,0.55,3999.5,3998.9,0.12458203]
[1734417476251,0.34220291,3999.4,3998.7,1.8479]
[1734417476467,0.34220291,3999.4,3999.1,1.00022]
[1734417477183,0.34220291,3999.4,3998.7,0.12767303]
[1734417477384,0.34220291,3999.4,3998.3,0.8476]
[1734417477385,3.74782737,3999.3,3998.9,1.00026]
[1734417477546,2.88862546,3999.3,3998.9,1.00026]
[1734417477751,0.32308284,3999.2,3998.9,1.00026]
[1734417478391,0.32308284,3999.2,3999.0,1.00024]
[1734417480399,0.55,3999.5,3999.3,1.00017]
[1734417489213,0.55,3999.5,3998.8,0.2515329]
[1734417489421,0.85957808,3999.4,3999.1,1.00022]
[1734417489581,0.85957808,3999.4,3998.8,0.12710816]
[1734417489582,2.1489452,3999.4,3999.2,1.00019]
[1734417491517,0.55,3999.3,3998.9,0.12920578]
[1734417491717,0.55,3999.3,3999.1,1.00021]
[1734417491718,0.42884954,3999.2,3999.1,1.00021]
[1734417491918,0.55,3999.4,3999.3,1.00016]
[1734417494327,2.4492946,3999.4,3999.3,1.00016]
[1734417494627,2.69935983,3999.4,3998.6,1.00032]
[1734417494841,0.55,3998.8,3998.6,1.00032]
[1734417494985,1.28944691,3998.7,3998.6,1.00032]
[1734417495185,0.55,3998.8,3998.6,1.00032]
[1734417495489,2.32848357,3998.7,3998.6,1.00032]
[1734417495740,2.14852339,3998.7,3998.6,1.00032]
[1734417495886,0.55,3998.6,3998.3,1.0004]
[1734417496083,0.85940296,3998.5,3998.3,1.0004]
[1734417496388,0.55,3998.6,3998.3,1.0004]
[1734417497291,0.55,3998.7,3998.3,1.0004]
[1734417497421,0.85887349,3998.6,3998.3,1.0004]
[1734417497637,1.15590715,3998.6,3998.4,1.00039]
[1734417497941,0.29703366,3998.6,3998.4,1.00039]
[1734417498637,1.03936314,3998.8,3998.6,1.00035]
[1734417498638,0.55,3998.8,3998.6,1.00035]
[1734417498837,0.55,3998.8,3998.7,1.00032]
[1734417499353,2.59887625,3999.1,3998.3,1.0004]
[1734417499680,2.59887625,3999.1,3998.8,1.00029]
[1734417499681,0.55,3998.9,3998.8,1.00029]
[1734417507273,1.03934157,3999.2,3999.1,1.00022]
[1734417507473,0.859374,3999.3,3999.1,1.00022]
[1734417507688,0.61523013,3999.3,3999.1,1.00022]
[1734417507897,1.3e-07,3999.3,3999.1,1.00022]
[1734417508204,1.03934157,3999.6,3999.5,1.00012]
[1734417508371,1.03949285,4000.1,3999.7,1.00007]
[1734417508830,4.15521848,4000.2,3999.7,1.00007]
[1734417509025,3.11572563,4000.2,3999.7,1.00007]
[1734417509469,3.11572563,4000.2,3999.7,1.87167]
[1734417511807,3.11572563,4000.2,3999.7,1.00007]
[1734417512309,0.55,3999.7,3999.5,1.00012]
[1734417512631,0.60087869,3999.6,3999.5,1.00012]
[1734417520308,0.55,3999.5,3999.3,1.00015]
[1734417521852,1.038806,3999.8,3999.5,1.00012]
[1734417522033,4.05383058,4000.6,4000.0,1.0]
[1734417522034,1.038806,4000.1,4000.0,1.0]
[1734417522220,1.038806,4000.5,3999.7,1.00007]
[1734417522555,1.55822786,4000.6,4000.4,0.9999]
[1734417523257,0.5219,4001.0,4000.6,0.99984]
[1734417523258,1.560706,4001.0,4000.6,0.99984]
[1734417523557,1.560706,4001.0,4000.2,3.0]
[1734417523769,3.11637963,4001.1,4001.0,0.99975]
[1734417523919,3.11637963,4001.1,4000.1,0.8705]
[1734417523920,0.55,4001.0,4000.2,0.99993]
[1734417524125,0.55,4000.8,4000.7,0.99981]
[1734417526827,0.55,4001.1,4000.7,0.99981]
[1734417527166,0.55,4001.1,4000.4,0.99987]
[1734417527478,0.55,4000.7,4000.4,0.99987]
[1734417527623,0.28886255,4000.6,4000.4,0.99987]
[1734417529229,1.0719,4000.5,3999.9,3.0]
[1734417529585,1.0719,4000.5,4000.3,0.99991]
[1734417530362,2.33862546,4000.4,4000.0,0.99999]
[1734417530519,0.55,4000.3,4000.0,0.99999]
[1734417530719,0.39605255,4000.2,4000.0,0.99999]
[1734417531535,0.55,4000.1,4000.0,0.99999]
[1734417531972,0.55,4000.1,3999.8,1.00003]
[1734417532391,0.55,4000.1,3999.6,0.8797]
[1734417532568,0.55,4000.1,3999.9,1.00002]
[1734417533225,0.8784678,4000.1,3999.9,1.00002]
[1734417533495,2.33862546,4000.4,3999.9,1.00002]
[1734417533629,0.55,4000.3,4000.2,0.99993]
[1734417533874,0.55,4000.5,3999.9,1.00002]
[1734417534035,0.55,4000.5,4000.4,0.99989]
[1734417536062,0.55,4000.5,4000.0,0.8805]
[1734417536452,0.55,4000.5,4000.3,0.99991]
[1734417537464,0.9199388,4000.5,4000.3,0.99991]
[1734417538027,2.86052546,4000.8,4000.1,3.0]
[1734417538028,2.86052546,4000.8,4000.6,0.99983]
[1734417538236,2.33862546,4000.8,4000.6,0.99983]
[1734417538854,2.33862546,4001.2,4000.9,0.99977]
[1734417539228,0.55,4001.1,4000.9,0.99977]
[1734417539427,0.83886255,4001.0,4000.9,0.99977]
[1734417541467,0.55,4001.0,4000.9,0.99977]
[1734417541671,1.03693806,4001.5,4001.0,0.99975]
[1734417541986,2.33862546,4001.6,4000.9,0.99977]
[1734417542189,2.33862546,4001.6,4001.2,0.99969]
[1734417542392,2.33862546,4001.6,4001.3,0.99966]
[1734417542527,0.28709255,4001.5,4000.9,0.99977]
[1734417543029,0.55,4001.4,4000.9,0.99977]
[1734417544256,0.55,4001.4,4000.7,0.8995]
[1734417544473,2.33862546,4001.2,4000.7,0.8995]
[1734417544767,2.33862546,4001.2,3999.7,3.12262698]
[1734417544768,2.33862546,4000.8,4000.1,1.89946]
[1734417544972,0.55,4000.7,4000.4,0.99988]
[1734417545565,2.33862546,4000.8,4000.7,0.99982]
[1734417546129,0.55,4000.7,4000.1,0.8995]
[1734417546419,0.55,4000.7,4000.2,0.99994]
[1734417546703,2.33862546,4000.8,4000.2,0.99994]
[1734417546704,0.55,4000.5,4000.2,0.99994]
[1734417547436,0.55,4000.5,4000.3,0.99992]
[1734417547632,0.55,4000.5,3999.8,0.8995]
[1734417547871,0.55,4000.5,4000.1,0.99996]
[1734417548233,0.55,4000.5,3999.8,0.8995]
[1734417548234,0.55,4000.3,3999.8,0.8995]
[1734417548471,0.34386255,4000.2,3999.5,1.00012]
[1734417548769,0.34386255,4000.2,3999.4,2.02674299]
[1734417548770,0.34386255,4000.2,3999.9,1.00002]
[1734417550742,0.34386255,4000.2,4000.0,0.99999]
[1734417551133,0.34386255,4000.2,3999.7,1.00005]
[1734417552439,0.34386255,4000.2,3999.6,0.12265203]
[1734417552694,0.3764788,4000.1,3999.8,1.00004]
[1734417553931,0.3764788,4000.1,3999.9,1.00002]
[1734417554233,1.0823,4000.3,3999.4,1.02661299]
[1734417554435,1.0823,4000.3,3999.8,1.00004]
[1734417555259,1.0823,4000.3,4000.0,0.99999]
[1734417555574,1.0823,4000.3,3999.7,1.00005]
[1734417556384,0.55,4000.1,3999.4,1.02661299]
[1734417556535,0.55,4000.1,3999.9,1.00002]
[1734417556732,0.55,4000.2,3999.9,1.00002]
[1734417556936,0.44591649,4000.1,3999.9,1.00002]
[1734417557169,0.55,4000.2,4000.1,0.99997]
[1734417557370,0.55,4000.3,3999.9,1.00002]
[1734417557779,1.03828174,4000.6,4000.2,0.99995]
[1734417557944,0.55,4000.5,4000.2,0.99995]
[1734417558374,1.58828174,4000.6,4000.2,0.99995]
[1734417558598,0.55,4000.4,4000.2,0.99995]
[1734417558802,1.70982297,4000.5,4000.3,0.99991]
[1734417558803,0.85130378,4000.5,4000.3,0.99991]
[1734417560090,0.55,4000.7,4000.4,0.99989]
[1734417560293,0.55,4000.5,4000.4,0.99989]
[1734417560678,0.55,4000.6,4000.4,0.99989]
[1734417561793,0.55,4000.5,4000.4,0.99989]
[1734417561993,2.33862546,4000.8,4000.6,0.99985]
[1734417562158,1.40887582,4000.7,4000.6,0.99985]
[1734417562349,0.55,4000.7,4000.6,0.99985]
[1734417563390,1.03828174,4001.0,4000.8,0.9998]
[1734417563589,1.03828174,4001.0,4000.7,3.8715]
[1734417563590,1.03828174,4001.1,4001.0,0.99975]
[1734417563791,2.14781766,4001.1,4001.0,0.99975]
[1734417564205,0.85912706,4001.1,4001.0,0.99975]
[1734417564376,1.71685903,4001.1,4001.0,0.99975]
[1734417564578,2.26685903,4001.1,4001.0,0.99975]
[1734417564781,1.40773197,4001.1,4001.0,0.99975]
[1734417565307,2.26706507,4001.1,4001.0,0.99975]
[1734417565825,3.55601733,4001.1,4001.0,0.99975]
[1734417566172,1.71706507,4001.1,4001.0,0.99975]
[1734417566437,2.26706507,4001.1,4000.7,0.8715]
[1734417566592,2.9911072,4001.0,4000.4,0.8715]
[1734417566930,0.55,4000.8,4000.4,0.99988]
[1734417567088,2.14864119,4000.7,4000.4,0.99988]
[1734417567300,0.55,4000.5,4000.4,0.99988]
[1734417567526,3.24043694,4000.5,4000.4,0.99988]
[1734417568028,4.09996688,4000.5,4000.1,0.99995]
[1734417568209,3.24043694,4000.5,3999.8,0.8715]
[1734417568372,3.24043694,4000.5,4000.2,0.99993]
[1734417569549,3.24043694,4000.5,4000.3,0.99992]
[1734417569670,0.97799574,4000.4,4000.3,0.99992]
[1734417572106,0.55,4000.4,4000.3,0.99992]
[1734417572313,0.55,4000.7,4000.5,0.99985]
[1734417572715,1.03968646,4000.8,3999.8,0.8715]
[1734417572716,1.88241762,4001.0,4000.9,0.99977]
[1734417572972,2.14932998,4001.0,4000.9,0.99977]
[1734417573459,0.85974291,4001.0,4000.9,0.99977]
[1734417574137,0.85974291,4001.1,4000.2,3.8715]
[1734417574316,3.18897163,4001.1,4000.9,0.99977]
[1734417574497,3.40790957,4001.0,4000.9,0.99977]
[1734417574701,2.11837648,4001.0,4000.9,0.99977]
[1734417575339,2.11835591,4001.0,4000.9,0.99977]
[1734417577418,1.40966422,4001.0,4000.9,0.99977]
[1734417577642,1.04027875,4001.3,4001.2,0.9997]
[1734417577859,0.86023597,4001.4,4001.3,0.99967]
[1734417578060,0.86024794,4001.4,4001.3,0.99967]
[1734417578259,1.04027875,4001.6,4001.0,0.99975]
[1734417578464,1.04027875,4001.6,4001.4,0.99965]
[1734417578465,0.5459777,4001.5,4001.4,0.99965]
[1734417578834,1.40614736,4001.5,4001.4,0.99965]
[1734417579028,1.40614736,4001.5,4000.9,0.8715]
[1734417579235,2.15025547,4001.4,4000.9,0.8715]
[1734417579532,2.15025547,4001.4,4000.5,0.1228805]
[1734417579533,5.00938093,4001.3,4001.0,0.99975]
[1734417579737,1.29008581,4001.2,4001.0,0.99975]
[1734417579933,1.29008581,4001.2,4000.5,0.8715]
[1734417580161,1.29008581,4001.2,4000.1,0.8715]
[1734417580162,0.55,4000.8,4000.1,0.8715]
[1734417580533,2.33862546,4000.5,4000.1,0.8715]
[1734417580767,2.94351292,4000.5,3999.8,0.8715]
[1734417580944,2.94351292,4000.5,4000.1,0.99995]
[1734417581146,2.94351292,4000.5,3999.8,0.8715]
[1734417581348,2.94351292,4000.5,3999.6,1.00008]
[1734417581349,0.55,4000.4,3999.6,1.00008]
[1734417581563,0.55,4000.2,3999.9,1.00001]
[1734417581750,0.24498176,4000.1,3999.9,1.00001]
[1734417581955,1.07925581,4000.0,3999.9,1.00001]
[1734417582773,1.07925581,4000.0,3999.4,0.8715]
[1734417582970,1.07925581,4000.0,3999.6,1.00008]
[1734417583174,1.07925581,4000.0,3999.8,1.00004]
[1734417583373,1.37067479,4000.0,3999.8,1.00004]
[1734417584098,0.55,3999.9,3999.5,1.00011]
[1734417584598,2.33855426,3999.7,3999.2,2.56882701]
[1734417584794,2.33855426,3999.7,3999.3,1.00017]
[1734417584993,0.28885543,3999.6,3999.3,1.00017]
[1734417585383,0.28885543,3999.6,3999.4,1.00014]
[1734417586181,0.55,3999.5,3999.2,1.56865701]
[1734417586401,3.40905426,3999.3,3999.2,1.56865701]
[1734417586600,3.88276319,3999.3,3999.2,1.56865701]
[1734417586785,6.03079611,3999.3,3999.2,1.56865701]
[1734417587100,4.74197636,3999.3,3999.2,1.56865701]
[1734417587258,3.88276319,3999.3,3999.2,1.56865701]
[1734417587455,0.55,3999.2,3998.7,0.75023]
[1734417587661,0.55,3999.0,3998.2,0.935]
[1734417587897,0.55,3999.0,3998.8,0.75021]
[1734417588095,1.03917962,3999.5,3998.6,3.935]
[1734417588096,0.55,3999.4,3998.6,3.935]
[1734417588402,0.55,3999.4,3999.2,0.75014]
[1734417589601,1.03917962,3999.5,3999.3,0.75011]
[1734417589761,1.40583855,3999.5,3999.3,0.75011]
[1734417591400,0.55,3999.4,3998.6,0.935]
[1734417591703,0.55,3999.4,3998.9,0.75019]
[1734417592519,0.55,3999.4,3998.6,3.935]
[1734417592664,0.55,3999.4,3999.1,0.75016]
[1734417592869,0.45832482,3999.3,3999.1,0.75016]
[1734417593859,0.45832482,3999.3,3998.9,3.0]
[1734417594064,0.45832482,3999.3,3998.6,0.935]
[1734417594065,3.40905426,3999.2,3998.6,0.935]
[1734417594297,3.40905426,3999.2,3998.5,0.75027]
[1734417594764,3.40905426,3999.2,3998.6,0.75025]
[1734417594977,0.55,3999.0,3998.6,0.75025]
[1734417596268,0.55,3999.0,3998.3,0.935]
[1734417596469,0.38673791,3999.1,3998.3,0.7503]
[1734417596470,0.55,3998.7,3998.3,0.7503]
[1734417597690,0.55,3998.7,3998.0,0.935]
[1734417597919,0.55,3998.7,3998.3,0.7503]
[1734417598091,0.27794208,3998.7,3998.4,0.75029]
[1734417598289,2.33855426,3998.8,3998.4,0.75029]
[1734417598490,0.38673791,3999.1,3998.0,0.935]
[1734417598491,0.38673791,3999.1,3998.0,4.23465361]
[1734417598691,0.38673791,3999.1,3998.7,0.75023]
[1734417598938,0.3704117,3999.0,3998.7,0.75023]
[1734417599529,0.3704117,3999.0,3998.4,0.75028]
[1734417599692,0.3704117,3999.0,3998.5,0.75027]
[1734417600101,0.3704117,3999.0,3998.6,0.75025]
[1734417601032,0.36162039,3998.9,3998.6,0.75025]
[1734417601208,0.36162039,3998.9,3998.1,0.12625126]
[1734417601403,0.36162039,3998.9,3998.4,0.75029]
[1734417601931,0.36162039,3998.9,3998.1,0.12625126]
[1734417602117,0.38673791,3999.1,3998.1,0.12625126]
[1734417602317,0.38673791,3999.1,3998.5,0.75026]
[1734417602634,0.38673791,3999.1,3998.7,0.75024]
[1734417606639,0.38673791,3999.1,3998.8,0.75021]
[1734417607736,0.38673791,3999.1,3998.8,0.75022]
[1734417608105,1.0798238,3998.9,3998.8,0.75022]
[1734417612524,0.4234,3999.5,3998.8,0.75022]
[1734417612722,1.0798238,3999.3,3999.2,0.75015]
[1734417614718,1.0798238,3999.3,3999.2,1.63425]
[1734417617518,1.0798238,3999.3,3999.0,0.75018]
[1734417618317,0.15032238,3999.2,3999.0,0.75018]
[1734417619851,0.15032238,3999.2,3998.8,0.75021]
[1734417619852,1.0798238,3999.3,3999.2,0.75015]
[1734417620852,1.0798238,3999.7,3999.3,0.75013]
[1734417621237,1.0798238,3999.7,3999.6,0.75007]
[1734417621625,1.0798238,4000.0,3999.6,0.75007]
[1734417621961,0.4234,4000.4,3999.8,0.8825]
[1734417622162,0.78511252,4000.4,4000.1,0.74996]
[1734417622460,0.78511252,4000.4,3999.8,0.8825]
[1734417622461,0.78511252,4000.4,3999.8,0.75002]
[1734417622663,2.33804724,4000.1,3999.8,0.75002]
[1734417623024,2.33804724,4000.1,3999.9,0.75001]
[1734417623634,2.33804724,4000.1,3999.5,0.8825]
[1734417623841,0.65720472,4000.0,3999.6,0.75006]
[1734417625097,0.55,3999.9,3999.3,0.75011]
[1734417625384,0.55,3999.6,3998.8,0.8825]
[1734417625679,2.33804724,3999.3,3998.8,0.8825]
[1734417626177,2.33804724,3999.3,3999.1,0.75016]
[1734417629914,2.54544724,3999.3,3998.8,0.75021]
[1734417630121,0.55,3999.2,3998.8,0.75021]
[1734417630674,0.55,3998.8,3998.1,0.29965361]
[1734417630876,0.55,3998.8,3998.3,0.75031]
[1734417631411,0.55,3998.8,3998.4,0.75029]
[1734417631569,0.55,3998.8,3998.6,0.75026]
[1734417633489,0.55,3998.8,3998.0,0.7618]
[1734417633490,2.33804724,3998.9,3998.7,0.75024]
[1734417633814,1.0385735,3999.2,3998.9,0.7502]
[1734417634017,3.7354064,3999.2,3998.9,0.7502]
[1734417634204,0.8587339,3999.1,3998.9,0.7502]
[1734417634522,0.55,3999.2,3998.9,0.7502]
[1734417634720,0.85875262,3999.1,3998.9,0.7502]
[1734417635990,0.55,3999.2,3998.9,0.7502]
[1734417636285,3.73549623,3999.2,3998.9,0.7502]
[1734417636593,0.85877264,3999.1,3998.9,0.7502]
[1734417637112,0.55,3999.2,3998.7,1.0003]
[1734417637430,3.73538862,3999.2,3998.7,1.0003]
[1734417637608,2.44729942,3999.2,3998.3,3.7618]
[1734417637811,2.44729942,3999.2,3998.8,1.00029]
[1734417637980,1.0385735,3999.2,3999.0,1.00024]
[1734417638185,2.33804724,3999.3,3999.1,1.00022]
[1734417639228,2.33804724,3999.3,3999.1,1.76202]
[1734417639619,3.37658341,3999.7,3999.1,0.7618]
[1734417639799,1.03853617,3999.9,3999.8,1.00005]
[1734417640151,2.80371049,4000.4,4000.2,0.99995]
[1734417640152,1.03853617,4000.4,4000.2,0.99995]
[1734417640421,4.93442645,4000.6,3999.8,1.00004]
[1734417640629,3.18518672,4000.5,4000.0,0.99998]
[1734417640832,0.85866022,4000.4,4000.0,0.99998]
[1734417641033,0.7081077,4000.4,4000.0,0.99998]
[1734417641230,2.33804724,4000.2,3999.9,1.00002]
[1734417641385,2.3265265,4000.5,3999.7,3.0]
[1734417641586,2.3265265,4000.5,4000.0,0.99998]
[1734417641587,3.1965748,4000.4,4000.0,0.99998]
[1734417641980,3.1965748,4000.4,4000.1,0.99996]
[1734417642222,3.79656774,4000.4,4000.1,0.99996]
[1734417643057,0.85839228,4000.3,4000.1,0.99996]
[1734417643191,2.93804018,4000.4,4000.1,0.99996]
[1734417643748,2.93804018,4000.4,3999.8,1.00005]
[1734417643888,2.33804724,4000.4,4000.2,0.99993]
[1734417645821,1.03811614,4000.6,4000.2,0.99993]
[1734417646022,1.03811614,4000.7,4000.5,0.99987]
[1734417646225,3.37616338,4000.8,4000.5,0.99987]
[1734417646396,0.85813824,4000.7,4000.5,0.99987]
[1734417646592,3.37616338,4000.8,4000.6,1.49975]
[1734417647017,2.33804724,4000.8,4000.6,1.49975]
[1734417647625,2.33804724,4000.8,4000.3,1.49986]
[1734417647833,1.21636266,4000.7,4000.3,1.49986]
[1734417648019,0.35832895,4000.7,4000.3,1.49986]
[1734417648220,0.35832895,4000.7,4000.3,1.49985]
[1734417648420,0.35832895,4000.7,4000.4,1.49984]
[1734417652021,1.07901789,4000.5,4000.4,1.49984]
[1734417653210,1.07901789,4000.5,4000.2,1.49991]
[1734417653415,1.07901789,4000.5,3999.9,3.7502]
[1734417653416,1.28641789,4000.3,3999.9,1.50002]
[1734417653744,1.07901789,4000.0,3999.9,1.50002]
[1734417655271,1.07901789,4000.3,4000.0,0.7502]
[1734417655432,1.07901789,4000.3,4000.2,1.49992]
[1734417656663,0.2074,4001.0,4000.3,1.49988]
[1734417656864,7.32583977,4001.4,4001.2,1.49954]
[1734417656865,6.8075135,4001.4,4001.2,1.49954]
[1734417657073,1.71584069,4001.4,4001.2,1.49954]
[1734417657249,1.07901789,4001.3,4001.2,1.49954]
[1734417657971,1.71584069,4001.4,4001.2,1.49954]
[1734417658846,0.55,4000.9,3999.6,1.04449088]
[1734417659178,2.3365696,4000.0,3999.6,1.04449088]
[1734417659482,2.3365696,4000.0,3999.6,2.54463088]
[1734417659835,2.3365696,4000.0,3999.7,1.5001]
[1734417660873,2.3365696,4000.0,3999.3,0.87729589]
[1734417661050,0.25439696,3999.9,3999.3,0.87729589]
[1734417661249,0.55,3999.8,3999.3,0.7502]
[1734417661461,0.55,3999.8,3999.2,1.50028]
[1734417662872,0.55,3999.8,3999.0,0.8223]
[1734417663088,0.55,3999.8,3999.3,1.50025]
[1734417664134,2.3365696,4000.0,3999.1,0.12481116]
[1734417664344,2.3365696,4000.0,3999.4,1.50021]
[1734417664548,2.3365696,4000.0,3999.1,0.12481116]
[1734417664748,2.3365696,4000.0,3999.6,1.50013]
[1734417664947,2.3365696,4000.0,3999.3,1.50023]
[1734417665181,2.3365696,4000.0,3999.1,0.12481116]
[1734417665386,2.3365696,4000.0,3999.5,1.50016]